lending/lending_fUSD_20240411
["ID","MTS","AMOUNT","RATE_DAILY","PERIOD"]
[322200156,1712869975211,-570.62571631,0.00029863,2]
[322200157,1712869975220,-1346.35,0.00029863,2]
[322200158,1712869975230,-500.0,0.00029863,2]
[322200159,1712869975239,-500.0,0.00029863,2]
[322200160,1712869975248,-2960.74,0.00029863,2]
[322200161,1712869975258,-887.19,0.00029863,2]
[322200162,1712869975267,-1179.12,0.00029863,2]
[322200163,1712869975277,-1283.97,0.00029863,2]
[322200164,1712869975286,-227.02987767,0.00029863,2]
[322200165,1712869975296,-872.68,0.00029863,2]
[322200166,1712869975305,-1502.33,0.00029863,2]
[322200167,1712869975315,-10128.26,0.00029863,2]
[322200168,1712869975324,-683.97,0.00029863,2]
[322200169,1712869975333,-623.58,0.00029863,2]
[322200170,1712869975343,-500.0,0.00029863,2]
[322200171,1712869975353,-1185.71,0.00029863,2]
[322200172,1712869975362,-500.0,0.00029863,2]
[322200173,1712869975371,-1427.1,0.00029863,2]
[322200174,1712869975381,-500.0,0.00029863,2]
[322200175,1712869975394,-2367.24,0.00029863,2]
[322200176,1712869975404,-2143.26,0.00029863,2]
[322200177,1712869975414,-500.0,0.00029863,2]
[322200178,1712869975424,-1106.87,0.00029863,2]
[322200179,1712869975434,-2686.26,0.00029863,2]
[322200180,1712869975444,-2721.81,0.00029863,2]
[322200181,1712869975455,-3567.1,0.00029863,2]
[322200182,1712869975467,-3548.97,0.00029863,2]
[322200183,1712869975476,-19344.8,0.00029863,2]
[322200184,1712869975485,-1844.22,0.00029863,2]
[322200185,1712869975496,-537.03,0.00029863,2]
[322200186,1712869975506,-1228.02,0.00029863,2]
[322200187,1712869975516,-3053.42,0.00029863,2]
[322200188,1712869975525,-4239.16,0.00029863,2]
[322200189,1712869975536,-1745.12,0.00029863,2]
[322200190,1712869975545,-3035.53,0.00029863,2]
[322200191,1712869975557,-4808.47,0.00029863,2]
[322200192,1712869975567,-2664.5,0.00029863,2]
[322200193,1712869975578,-1373.93,0.00029863,2]
[322200194,1712869975587,-505.74,0.00029863,2]
[322200195,1712869975598,-3190.86,0.00029863,2]
[322200196,1712869975606,-738.07,0.00029863,2]
[322200197,1712869975616,-1109.77,0.00029863,2]
[322200198,1712869975625,-2221.72,0.00029863,2]
[322200199,1712869975634,-2263.75,0.00029863,2]
[322200200,1712869975643,-17424.44,0.00029863,2]
[322200201,1712869975653,-1128.64,0.00029863,2]
[322200202,1712869975662,-1502.24,0.00029863,2]
[322200203,1712869975671,-612.74,0.00029863,2]
[322200204,1712869975681,-500.0,0.00029863,2]
[322200205,1712869975690,-17072.27,0.00029863,2]
[322200206,1712869975700,-3052.22,0.00029863,2]
[322200207,1712869975709,-500.0,0.00029863,2]
[322200208,1712869975719,-3640.47,0.00029863,2]
[322200209,1712869975728,-500.0,0.00029863,2]
[322200210,1712869975738,-1957.97,0.00029863,2]
[322200211,1712869975750,-955.9,0.00029863,2]
[322200212,1712869975759,-500.0,0.00029863,2]
[322200213,1712869975771,-500.0,0.00029863,2]
[322200214,1712869975782,-3659.25,0.00029863,2]
[322200215,1712869975791,-5766.3,0.00029863,2]
[322200216,1712869975802,-3575.16,0.00029863,2]
[322200217,1712869975815,-711.78,0.00029863,2]
[322200218,1712869975826,-7639.5,0.00029863,2]
[322200219,1712869975836,-500.0,0.00029863,2]
[322200220,1712869975845,-1392.31,0.00029863,2]
[322200221,1712869975856,-7389.58,0.00029863,2]
[322200222,1712869975866,-3014.69,0.00029863,2]
[322200223,1712869975875,-2191.02,0.00029863,2]
[322200224,1712869975885,-5336.03,0.00029863,2]
[322200225,1712869975896,-4291.51,0.00029863,2]
[322200226,1712869975906,-500.0,0.00029863,2]
[322200227,1712869975916,-1051.14,0.00029863,2]
[322200228,1712869975926,-604.03,0.00029863,2]
[322200229,1712869975936,-592.96372075,0.00029863,2]
[322200230,1712869975947,-52708.74,0.00029863,2]
[322200231,1712869975957,-3260.75,0.00029863,2]
[322200232,1712869975967,-5115.15,0.00029863,2]
[322200233,1712869975977,-882.87,0.00029863,2]
[322200234,1712869975987,-5854.93,0.00029863,2]
[322200235,1712869975996,-8061.26,0.00029863,2]
[322200236,1712869976006,-916.85,0.00029863,2]
[322200237,1712869976016,-7112.46,0.00029863,2]
[322200238,1712869976026,-745.2,0.00029863,2]
[322200239,1712869976037,-6099.37,0.00029863,2]
[322200240,1712869976048,-1872.85,0.00029863,2]
[322200241,1712869976058,-5187.78,0.00029863,2]
[322200242,1712869976069,-1834.17,0.00029863,2]
[322200243,1712869976078,-500.0,0.00029863,2]
[322200244,1712869976090,-1268.14,0.00029863,2]
[322200245,1712869976100,-1960.92,0.00029863,2]
[322200246,1712869976110,-500.0,0.00029863,2]
[322200247,1712869976120,-3993.87,0.00029863,2]
[322200248,1712869976129,-1940.4,0.00029863,2]
[322200249,1712869976141,-1144.44,0.00029863,2]
[322200250,1712869976151,-30065.72,0.00029863,2]
[322200251,1712869976163,-500.0,0.00029863,2]
[322200252,1712869976173,-1318.07,0.00029863,2]
[322200253,1712869976184,-3922.38,0.00029863,2]
[322200254,1712869976195,-1507.79,0.00029863,2]
[322200255,1712869976205,-7272.96,0.00029863,2]
[322200256,1712869976218,-2185.46,0.00029863,2]
[322200257,1712869976228,-500.0,0.00029863,2]
[322200258,1712869976237,-500.0,0.00029863,2]
[322200259,1712869976248,-1894.92,0.00029863,2]
[322200260,1712869976259,-739.67,0.00029863,2]
[322200261,1712869976270,-415.31914338,0.00029863,2]
[322200262,1712869976279,-2576.43,0.00029863,2]
[322200263,1712869976289,-500.0,0.00029863,2]
[322200264,1712869976299,-752.22,0.00029863,2]
[322200265,1712869976308,-452.38471794,0.00029863,2]
[322200266,1712869976318,-2674.56,0.00029863,2]
[322200267,1712869976327,-918.8,0.00029863,2]
[322200268,1712869976336,-548.63,0.00029863,2]
[322200269,1712869976346,-636.15,0.00029863,2]
[322200270,1712869976355,-729.18,0.00029863,2]
[322200271,1712869976365,-763.21,0.00029863,2]
[322200272,1712869976374,-3486.04,0.00029863,2]
[322200273,1712869976386,-8034.42,0.00029863,2]
[322200274,1712869976396,-3850.53,0.00029863,2]
[322200275,1712869976406,-544.38,0.00029863,2]
[322200276,1712869976415,-1687.56,0.00029863,2]
[322200277,1712869976426,-500.0,0.00029863,2]
[322200278,1712869976436,-4101.12,0.00029863,2]
[322200279,1712869976446,-565.51,0.00029863,2]
[322200280,1712869976455,-2084.11,0.00029863,2]
[322200281,1712869976467,-544.26,0.00029863,2]
[322200282,1712869976478,-1782.79,0.00029863,2]
[322200283,1712869976488,-3404.95,0.00029863,2]
[322200284,1712869976498,-510.02,0.00029863,2]
[322200285,1712869976507,-500.0,0.00029863,2]
[322200286,1712869976517,-500.0,0.00029863,2]
[322200287,1712869976526,-2028.74,0.00029863,2]
[322200288,1712869976535,-500.0,0.00029863,2]
[322200289,1712869976544,-500.0,0.00029863,2]
[322200290,1712869976555,-3939.9,0.00029863,2]
[322200291,1712869976564,-733.75,0.00029863,2]
[322200292,1712869976574,-5901.28,0.00029863,2]
[322200293,1712869976583,-2166.88,0.00029863,2]
[322200294,1712869976592,-500.0,0.00029863,2]
[322200295,1712869976602,-722.6,0.00029863,2]
[322200296,1712869976612,-538.95,0.00029863,2]
[322200297,1712869976622,-3339.86,0.00029863,2]
[322200298,1712869976631,-1774.88,0.00029863,2]
[322200299,1712869976641,-500.0,0.00029863,2]
[322200300,1712869976650,-896.99,0.00029863,2]
[322200301,1712869976659,-331.380326,0.00029863,14]
[322200302,1712869976669,-154197.29770165,0.00029877,2]
[322200303,1712869976678,-1954319.64880309,0.0002988,2]
[322200304,1712869976688,-12156.99077069,0.000299,2]
[322200305,1712869976697,-104032.09082897,0.000299,3]
[322200306,1712869976707,-1000.0,0.000299,2]
[322200307,1712869976715,-840.0,0.00029914,2]
[322200308,1712869976725,-161.97,0.00029954,2]
[322200309,1712869976734,-48086.28365804,0.0002999,2]
[322200310,1712869976782,-100000.0,0.0003,10]
[322200311,1712869976791,-20168.76501266,0.0003,2]
[322200312,1712869976800,-762.78134627,0.0003,2]
[322200313,1712869976810,-290.29680867,0.0003,2]
[322200314,1712869976819,-1153.71391397,0.0003,3]
[322200315,1712869976828,-2219.56049107,0.0003,3]
[322200316,1712869976838,-457.92535538,0.0003,2]
[322200317,1712869976847,-679.78872895,0.0003,2]
[322200318,1712869976856,-256.48341393,0.0003,4]
[322200319,1712869976865,-182.59917871,0.0003,2]
[322200320,1712869976874,-8981.21057634,0.0003,2]
[322200321,1712869976883,-2500.0,0.0003,5]
[322200322,1712869976892,-2500.0,0.0003,5]
[322200323,1712869976901,-2000.0,0.0003,5]
[322200324,1712869976910,-1000.0,0.0003,2]
[322200325,1712869976920,-524.0,0.00030028,2]
[322200326,1712869976929,-536.0,0.00030028,2]
[322200327,1712869976938,-3471.41144835,0.00030036,2]
[322200328,1712869976947,-150.0,0.00030051,2]
[322200329,1712869976956,-371.77,0.000301,2]
[322200330,1712869976965,-150.0,0.00030107,2]
[322200331,1712869976973,-507.89,0.00030136,2]
[322200332,1712869976982,-590.86,0.00030136,2]
[322200333,1712869976991,-610.95206562,0.00030136,2]
[322200334,1712869977000,-805.44,0.00030136,2]
[322200335,1712869977009,-603.83775033,0.00030136,2]
[322200336,1712869977018,-629.54,0.00030136,2]
[322200337,1712869977027,-500.0,0.00030136,2]
[322200338,1712869977036,-500.0,0.00030136,2]
[322200339,1712869977045,-500.0,0.00030136,2]
[322200340,1712869977054,-765.12,0.00030136,2]
[322200341,1712869977063,-500.0,0.00030136,2]
[322200342,1712869977072,-673.55,0.00030136,2]
[322200343,1712869977082,-500.0,0.00030136,2]
[322200344,1712869977091,-500.0,0.00030136,2]
[322200345,1712869977102,-500.0,0.00030136,2]
[322200346,1712869977111,-500.0,0.00030136,2]
[322200347,1712869977121,-1055.22,0.00030136,2]
[322200348,1712869977132,-838.26,0.00030136,2]
[322200349,1712869977141,-513.12,0.00030136,2]
[322200350,1712869977151,-500.0,0.00030136,2]
[322200351,1712869977162,-561.16,0.00030136,2]
[322200352,1712869977173,-520.88,0.00030136,2]
[322200353,1712869977183,-500.0,0.00030136,2]
[322200354,1712869977194,-532.8,0.00030136,2]
[322200355,1712869977203,-717.66,0.00030136,2]
[322200356,1712869977214,-303.32531348,0.00030136,2]
[322200357,1712869977226,-956.54,0.00030136,2]
[322200358,1712869977236,-500.0,0.00030136,2]
[322200359,1712869977246,-527.16,0.00030136,2]
[322200360,1712869977257,-500.0,0.00030136,2]
[322200361,1712869977268,-583.53,0.00030136,2]
[322200362,1712869977279,-500.0,0.00030136,2]
[322200363,1712869977288,-500.0,0.00030136,2]
[322200364,1712869977297,-500.0,0.00030136,2]
[322200365,1712869977307,-794.27,0.00030136,2]
[322200366,1712869977316,-775.81,0.00030136,2]
[322200367,1712869977326,-500.0,0.00030136,2]
[322200368,1712869977336,-1268.53,0.00030136,2]
[322200369,1712869977346,-579.81,0.00030136,2]
[322200370,1712869977355,-683.65,0.00030136,2]
[322200371,1712869977365,-500.0,0.00030136,2]
[322200372,1712869977375,-500.0,0.00030136,2]
[322200373,1712869977390,-260.61553089,0.00030136,2]
[322200374,1712869977401,-500.0,0.00030136,2]
[322200375,1712869977411,-1283.53,0.00030136,2]
[322200376,1712869977422,-500.0,0.00030136,2]
[322200377,1712869977433,-1242.22,0.00030136,2]
[322200378,1712869977443,-610.16,0.00030136,2]
[322200379,1712869977454,-686.6,0.00030136,2]
[322200380,1712869977465,-964.51,0.00030136,2]
[322200381,1712869977475,-552.23,0.00030136,2]
[322200382,1712869977486,-500.0,0.00030136,2]
[322200383,1712869977495,-500.0,0.00030136,2]
[322200384,1712869977506,-160.47797417,0.00030136,2]
[322200385,1712869977516,-500.0,0.00030136,2]
[322200386,1712869977525,-993.58,0.00030136,2]
[322200387,1712869977535,-500.0,0.00030136,2]
[322200388,1712869977545,-675.23,0.00030136,2]
[322200389,1712869977555,-1308.49,0.00030136,2]
[322200390,1712869977564,-703.03,0.00030136,2]
[322200391,1712869977575,-564.56,0.00030136,2]
[322200392,1712869977585,-560.79,0.00030136,2]
[322200393,1712869977594,-561.9,0.00030136,2]
[322200394,1712869977603,-479.92402094,0.00030136,2]
[322200395,1712869977613,-1067.51,0.00030136,2]
[322200396,1712869977622,-598.24,0.00030136,2]
[322200397,1712869977632,-691.29,0.00030136,2]
[322200398,1712869977641,-500.0,0.00030136,2]
[322200399,1712869977650,-500.0,0.00030136,2]
[322200400,1712869977660,-704.14,0.00030136,2]
[322200401,1712869977669,-645.96,0.00030136,2]
[322200402,1712869977678,-500.0,0.00030136,2]
[322200403,1712869977688,-1172.44,0.00030136,2]
[322200404,1712869977697,-264.91351966,0.00030136,2]
[322200405,1712869977706,-1403.78,0.00030136,2]
[322200406,1712869977715,-820.3,0.00030136,2]
[322200407,1712869977725,-1352.31,0.00030136,2]
[322200408,1712869977734,-868.58,0.00030136,2]
[322200409,1712869977743,-1263.1,0.00030136,2]
[322200410,1712869977753,-1192.54,0.00030136,2]
[322200411,1712869977763,-1391.45,0.00030136,2]
[322200412,1712869977772,-811.44,0.00030136,2]
[322200413,1712869977781,-609.69,0.00030136,2]
[322200414,1712869977790,-676.3,0.00030136,2]
[322200415,1712869977799,-540.39,0.00030136,2]
[322200416,1712869977808,-1771.03,0.00030136,2]
[322200417,1712869977817,-541.31,0.00030136,2]
[322200418,1712869977826,-1468.06,0.00030136,2]
[322200419,1712869977836,-862.27,0.00030136,2]
[322200420,1712869977845,-1183.63,0.00030136,2]
[322200421,1712869977855,-295.09675508,0.00030136,2]
[322200422,1712869977864,-500.0,0.00030136,2]
[322200423,1712869977873,-500.0,0.00030136,2]
[322200424,1712869977883,-839.54,0.00030136,2]
[322200425,1712869977893,-1787.12,0.00030136,2]
[322200426,1712869977902,-500.0,0.00030136,2]
[322200427,1712869977911,-500.0,0.00030136,2]
[322200428,1712869977921,-500.0,0.00030136,2]
[322200429,1712869977930,-1253.73,0.00030136,2]
[322200430,1712869977941,-735.73,0.00030136,2]
[322200431,1712869977950,-500.0,0.00030136,2]
[322200432,1712869977960,-1318.44,0.00030136,2]
[322200433,1712869977969,-1495.11,0.00030136,2]
[322200434,1712869977978,-700.59,0.00030136,2]
[322200435,1712869977988,-758.95,0.00030136,2]
[322200436,1712869977998,-521.21,0.00030136,2]
[322200437,1712869978008,-1654.67,0.00030136,2]
[322200438,1712869978017,-543.24372663,0.00030136,2]
[322200439,1712869978027,-638.47,0.00030136,2]
[322200440,1712869978037,-1164.2,0.00030136,2]
[322200441,1712869978047,-500.0,0.00030136,2]
[322200442,1712869978057,-949.05,0.00030136,2]
[322200443,1712869978067,-500.0,0.00030136,2]
[322200444,1712869978076,-1096.04,0.00030136,2]
[322200445,1712869978085,-777.64,0.00030136,2]
[322200446,1712869978094,-646.84,0.00030136,2]
[322200447,1712869978104,-958.72,0.00030136,2]
[322200448,1712869978113,-641.60576823,0.00030136,2]
[322200449,1712869978122,-683.7,0.00030136,2]
[322200450,1712869978131,-897.54,0.00030136,2]
[322200451,1712869978140,-379.02882938,0.00030136,2]
[322200452,1712869978150,-684.68,0.00030136,2]
[322200453,1712869978160,-500.0,0.00030136,2]
[322200454,1712869978169,-543.38,0.00030136,2]
[322200455,1712869978381,-809.17,0.00030136,2]
[322200456,1712869978402,-698.14,0.00030136,2]
[322200457,1712869978412,-1067.08,0.00030136,2]
[322200458,1712869978421,-1021.38,0.00030136,2]
[322200459,1712869978431,-784.4,0.00030136,2]
[322200460,1712869978440,-1207.29,0.00030136,2]
[322200461,1712869978450,-853.95,0.00030136,2]
[322200462,1712869978459,-1154.75,0.00030136,2]
[322200463,1712869978470,-1500.39,0.00030136,2]
[322200464,1712869978481,-500.0,0.00030136,2]
[322200465,1712869978491,-1102.48,0.00030136,2]
[322200466,1712869978500,-1684.95,0.00030136,2]
[322200467,1712869978510,-864.47,0.00030136,2]
[322200468,1712869978520,-1050.08,0.00030136,2]
[322200469,1712869978531,-1060.45,0.00030136,2]
[322200470,1712869978541,-727.49,0.00030136,2]
[322200471,1712869978551,-534.42,0.00030136,2]
[322200472,1712869978561,-500.0,0.00030136,2]
[322200473,1712869978571,-598.73,0.00030136,2]
[322200474,1712869978580,-500.0,0.00030136,2]
[322200475,1712869978590,-1013.17,0.00030136,2]
[322200476,1712869978599,-500.0,0.00030136,2]
[322200477,1712869978608,-552.15,0.00030136,2]
[322200478,1712869978618,-722.75,0.00030136,2]
[322200479,1712869978627,-1454.96,0.00030136,2]
[322200480,1712869978637,-585.74,0.00030136,2]
[322200481,1712869978646,-600.91,0.00030136,2]
[322200482,1712869978655,-627.17,0.00030136,2]
[322200483,1712869978665,-1870.66,0.00030136,2]
[322200484,1712869978675,-921.94,0.00030136,2]
[322200485,1712869978684,-1288.35,0.00030136,2]
[322200486,1712869978694,-500.0,0.00030136,2]
[322200487,1712869978703,-670.72,0.00030136,2]
[322200488,1712869978712,-1052.23,0.00030136,2]
[322200489,1712869978722,-1720.31,0.00030136,2]
[322200490,1712869978732,-500.0,0.00030136,2]
[322200491,1712869978741,-2622.22,0.00030136,2]
[322200492,1712869978751,-1850.14,0.00030136,2]
[322200493,1712869978761,-500.0,0.00030136,2]
[322200494,1712869978770,-500.0,0.00030136,2]
[322200495,1712869978779,-404.89127289,0.00030136,2]
[322200496,1712869978789,-500.0,0.00030136,2]
[322200497,1712869978798,-869.29,0.00030136,2]
[322200498,1712869978807,-500.0,0.00030136,2]
[322200499,1712869978817,-933.06,0.00030136,2]
[322200500,1712869978827,-722.11,0.00030136,2]
[322200501,1712869978836,-500.0,0.00030136,2]
[322200502,1712869978845,-1172.68,0.00030136,2]
[322200503,1712869978854,-500.0,0.00030136,2]
[322200504,1712869978864,-500.0,0.00030136,2]
[322200505,1712869978873,-486.3,0.00030136,2]
[322200506,1712869978882,-1203.46,0.00030136,2]
[322200507,1712869978891,-993.8,0.00030136,2]
[322200508,1712869978900,-500.0,0.00030136,2]
[322200509,1712869978910,-500.0,0.00030136,2]
[322200510,1712869978919,-150.0,0.00030136,2]
[322200511,1712869978929,-1318.86,0.00030136,2]
[322200512,1712869978937,-879.12,0.00030136,2]
[322200513,1712869978947,-1664.67,0.00030136,2]
[322200514,1712869978956,-500.0,0.00030136,2]
[322200515,1712869978965,-553.15,0.00030136,2]
[322200516,1712869978975,-916.81,0.00030136,2]
[322200517,1712869978984,-923.4,0.00030136,2]
[322200518,1712869978993,-1597.09,0.00030136,2]
[322200519,1712869979002,-500.0,0.00030136,2]
[322200520,1712869979011,-500.0,0.00030136,2]
[322200521,1712869979021,-500.0,0.00030136,2]
[322200522,1712869979030,-500.0,0.00030136,2]
[322200523,1712869979039,-500.0,0.00030136,2]
[322200524,1712869979049,-1225.4,0.00030136,2]
[322200525,1712869979058,-500.0,0.00030136,2]
[322200526,1712869979067,-1736.6,0.00030136,2]
[322200527,1712869979076,-1687.78,0.00030136,2]
[322200528,1712869979086,-533.65,0.00030136,2]
[322200529,1712869979096,-892.21,0.00030136,2]
[322200530,1712869979106,-698.09,0.00030136,2]
[322200531,1712869979115,-500.0,0.00030136,2]
[322200532,1712869979125,-269.80772232,0.00030136,2]
[322200533,1712869979134,-1618.97,0.00030136,2]
[322200534,1712869979144,-500.0,0.00030136,2]
[322200535,1712869979157,-500.0,0.00030136,2]
[322200536,1712869979166,-998.14,0.00030136,2]
[322200537,1712869979177,-500.0,0.00030136,2]
[322200538,1712869979186,-1890.51,0.00030136,2]
[322200539,1712869979196,-827.22,0.00030136,2]
[322200540,1712869979205,-500.0,0.00030136,2]
[322200541,1712869979214,-500.0,0.00030136,2]
[322200542,1712869979223,-500.0,0.00030136,2]
[322200543,1712869979233,-1646.03,0.00030136,2]
[322200544,1712869979242,-911.48,0.00030136,2]
[322200545,1712869979251,-767.01,0.00030136,2]
[322200546,1712869979261,-1116.76,0.00030136,2]
[322200547,1712869979271,-570.82,0.00030136,2]
[322200548,1712869979281,-1022.77,0.00030136,2]
[322200549,1712869979292,-831.5,0.00030136,2]
[322200550,1712869979302,-680.97,0.00030136,2]
[322200551,1712869979311,-500.0,0.00030136,2]
[322200552,1712869979321,-500.0,0.00030136,2]
[322200553,1712869979331,-752.98,0.00030136,2]
[322200554,1712869979340,-500.0,0.00030136,2]
[322200555,1712869979349,-1499.79,0.00030136,2]
[322200556,1712869979359,-814.1,0.00030136,2]
[322200557,1712869979368,-7400.19,0.00030136,2]
[322200558,1712869979377,-1023.14,0.00030136,2]
[322200559,1712869979389,-700.72,0.00030136,2]
[322200560,1712869979399,-500.0,0.00030136,2]
[322200561,1712869979408,-950.09,0.00030136,2]
[322200562,1712869979418,-1871.77,0.00030136,2]
[322200563,1712869979430,-3724.71,0.00030136,2]
[322200564,1712869979439,-5395.14,0.00030136,2]
[322200565,1712869979448,-1464.27,0.00030136,2]
[322200566,1712869979459,-978.66,0.00030136,2]
[322200567,1712869979469,-500.0,0.00030136,2]
[322200568,1712869979478,-693.58,0.00030136,2]
[322200569,1712869979488,-984.51,0.00030136,2]
[322200570,1712869979497,-500.0,0.00030136,2]
[322200571,1712869979506,-500.0,0.00030136,2]
[322200572,1712869979516,-4620.04,0.00030136,2]
[322200573,1712869979525,-1300.92,0.00030136,2]
[322200574,1712869979535,-934.17,0.00030136,2]
[322200575,1712869979544,-1543.03,0.00030136,2]
[322200576,1712869979553,-5425.41,0.00030136,2]
[322200577,1712869979562,-500.0,0.00030136,2]
[322200578,1712869979572,-1214.31,0.00030136,2]
[322200579,1712869979581,-788.68,0.00030136,2]
[322200580,1712869979591,-613.33,0.00030136,2]
[322200581,1712869979600,-500.0,0.00030136,2]
[322200582,1712869979609,-827.37,0.00030136,2]
[322200583,1712869979619,-500.0,0.00030136,2]
[322200584,1712869979628,-1593.55,0.00030136,2]
[322200585,1712869979637,-1948.7,0.00030136,2]
[322200586,1712869979646,-500.0,0.00030136,2]
[322200587,1712869979656,-9749.83,0.00030136,2]
[322200588,1712869979665,-2131.76,0.00030136,2]
[322200589,1712869979676,-500.0,0.00030136,2]
[322200590,1712869979685,-1560.14,0.00030136,2]
[322200591,1712869979694,-1518.32,0.00030136,2]
[322200592,1712869979703,-661.44,0.00030136,2]
[322200593,1712869979713,-1413.3,0.00030136,2]
[322200594,1712869979722,-5230.96,0.00030136,2]
[322200595,1712869979730,-2479.01,0.00030136,2]
[322200596,1712869979740,-500.0,0.00030136,2]
[322200597,1712869979750,-3647.95,0.00030136,2]
[322200598,1712869979759,-1464.2,0.00030136,2]
[322200599,1712869979768,-1527.36,0.00030136,2]
[322200600,1712869979777,-1358.23,0.00030136,2]
[322200601,1712869979786,-1020.16,0.00030136,2]
[322200602,1712869979795,-668.8,0.00030136,2]
[322200603,1712869979804,-11162.19,0.00030136,2]
[322200604,1712869979814,-41084.78,0.00030136,2]
[322200605,1712869979823,-3874.31,0.00030136,2]
[322200606,1712869979833,-500.0,0.00030136,2]
[322200607,1712869979842,-740.63,0.00030136,2]
[322200608,1712869979852,-500.0,0.00030136,2]
[322200609,1712869979861,-500.0,0.00030136,2]
[322200610,1712869979871,-548.57,0.00030136,2]
[322200611,1712869979880,-7785.82,0.00030136,2]
[322200612,1712869979889,-1513.09,0.00030136,2]
[322200613,1712869979899,-567.17,0.00030136,2]
[322200614,1712869979910,-3631.93,0.00030136,2]
[322200615,1712869979919,-8421.98,0.00030136,2]
[322200616,1712869979929,-3207.81,0.00030136,2]
[322200617,1712869979938,-2311.09,0.00030136,2]
[322200618,1712869979947,-12662.48,0.00030136,2]
[322200619,1712869979956,-500.0,0.00030136,2]
[322200620,1712869979966,-921.98,0.00030136,2]
[322200621,1712869979975,-500.0,0.00030136,2]
[322200622,1712869979984,-1525.4,0.00030136,2]
[322200623,1712869979993,-1851.69,0.00030136,2]
[322200624,1712869980002,-7402.21,0.00030136,2]
[322200625,1712869980012,-3131.37,0.00030136,2]
[322200626,1712869980021,-875.02,0.00030136,2]
[322200627,1712869980030,-2709.87,0.00030136,2]
[322200628,1712869980040,-500.0,0.00030136,2]
[322200629,1712869980049,-1503.27,0.00030136,2]
[322200630,1712869980059,-2499.54,0.00030136,2]
[322200631,1712869980068,-650.21,0.00030136,2]
[322200632,1712869980078,-5388.34,0.00030136,2]
[322200633,1712869980087,-1676.04,0.00030136,2]
[322200634,1712869980096,-2309.38,0.00030136,2]
[322200635,1712869980106,-643.01,0.00030136,2]
[322200636,1712869980115,-5653.29,0.00030136,2]
[322200637,1712869980125,-928.47,0.00030136,2]
[322200638,1712869980134,-1703.86,0.00030136,2]
[322200639,1712869980143,-790.7,0.00030136,2]
[322200640,1712869980153,-421.70191786,0.00030136,2]
[322200641,1712869980162,-2381.75,0.00030136,2]
[322200642,1712869980172,-852.74,0.00030136,2]
[322200643,1712869980181,-2994.14,0.00030136,2]
[322200644,1712869980190,-500.0,0.00030136,2]
[322200645,1712869980200,-4680.33,0.00030136,2]
[322200646,1712869980209,-21256.33,0.00030136,2]
[322200647,1712869980218,-2204.86,0.00030136,2]
[322200648,1712869980227,-989.07,0.00030136,2]
[322200649,1712869980237,-5675.36,0.00030136,2]
[322200650,1712869980246,-660.51,0.00030136,2]
[322200651,1712869980255,-2867.21,0.00030136,2]
[322200652,1712869980265,-1346.35,0.00030136,2]
[322200653,1712869980274,-500.0,0.00030136,2]
[322200654,1712869980283,-500.0,0.00030136,2]
[322200655,1712869980292,-2960.74,0.00030136,2]